Cogmind - Beta 10.2 @@@ ROGUE MODE // 2020.11.02 @ 19:09:30 Player: Reverend Result: Destroyed by D-53 Grenadier with Mini Grenade Launcher Performance ------------- Evolutions (0) 0 Regions Visited (2) 400 Robots Destroyed (19) 95 Value Destroyed (331) 331 Prototype IDs (0) 0 Alien Tech Used (0) 0 Bonus (0) 0 TOTAL SCORE: 826 Bonus ------- None Cogmind --------- Core Integrity 0/250 Matter 300/300 Energy 124/125 System Corruption 0% Temperature Cool (0) Movement Core (150) Ox2 Location -10/Mines Parts ------- > --- POWER (1) -------- Light Ion Engine > --- PROPULSION (2) --- (None) > --- UTILITY (2) ------ Small Storage Unit ECM Suite > --- WEAPON (2) ------- (None) > --- INVENTORY (6) ---- Ion Engine Aluminum Leg Aluminum Leg Aluminum Leg Aluminum Leg Small Laser Peak State ------------ > --- POWER ------------ Light Ion Engine > --- PROPULSION ------- Light Treads Light Treads > --- UTILITY ---------- Small Storage Unit ECM Suite > --- WEAPON ----------- Spread Laser Spread Laser > --- INVENTORY -------- Light Ion Engine ECM Suite Medium Laser Assault Rifle [Rating: 9] Favorites ----------- Power Light Ion Engine Engine Light Ion Engine Propulsion Light Treads Treads Light Treads Leg Aluminum Leg Wheel Compact Wheel Utility Small Storage Unit Device ECM Suite Storage Small Storage Unit Weapon Assault Rifle Energy Gun Medium Laser Ballistic Gun Assault Rifle Build | -11 -10 -10 ------- Run | Scr Mat Min Slots Evolved . | . . . Power . | . . . Propulsion . | . . . Utility . | . . . Weapon . | . . . Parts Attached 26 | 10 16 . Power 4 | 1 3 . Engine 4 | 1 3 . Core . | . . . Reactor . | . . . Propulsion 8 | 6 2 . Treads 4 | 2 2 . Leg 2 | 2 . . Wheel 2 | 2 . . Hover . | . . . Flight . | . . . Utility 3 | 1 2 . Device 2 | . 2 . Storage 1 | 1 . . Processor . | . . . Hackware . | . . . Protection . | . . . Artifact . | . . . Weapon 11 | 2 9 . Energy Gun 6 | 1 5 . Energy Cannon . | . . . Ballistic Gun 5 | 1 4 . Ballistic Cannon . | . . . Launcher . | . . . Special Weapon . | . . . Impact Weapon . | . . . Slashing Weapon . | . . . Piercing Weapon . | . . . Special Melee Weapon . | . . . Unidentified Prototypes . | . . . Parts Lost 12 | . 8 4 Power 1 | . 1 . Propulsion 4 | . 2 2 Utility 1 | . 1 . Weapon 6 | . 4 2 Highest Loss Streak 5 | . 5 4 Average Slot Usage (%) 94 | . 94 95 Engine 13 | . 13 14 Treads 16 | . 16 23 Leg 7 | . 8 . Device 13 | . 13 14 Storage 14 | . 14 14 Energy Gun 18 | . 18 14 Ballistic Gun 9 | . 8 14 Naked Turns . | . . . Heaviest Build 14 | 11 14 12 Greatest Support 40 | 20 40 40 Greatest Overweight (x) 3 | . 3 2 Average Overweight (x) . | . . . Largest Inventory Capacity 6 | 6 6 6 Average Capacity 5 | 5 6 6 Most Carried 6 | 6 6 6 Average Carried 4 | 3 4 6 Final Capacity 6 | 6 6 6 Final Carried 6 | 4 6 6 Class Distribution -------------------- 100% | Mutant Dominant Class ---------------- Mutant | -10/Materials Mutant | -10/Mines Resources | -11 -10 -10 ----------- Run | Scr Mat Min Matter Collected 571 | 172 399 . Remotely . | . . . Salvage Created 541 | . 541 . Parts 33 | . 33 . Haulers Intercepted . | . . . Recyclers Shooed . | . . . Parts Field Recycled . | . . . Retrieved Matter . | . . . Parts Self-Destructed . | . . . Prevented . | . . . Kills | -11 -10 -10 ------- Run | Scr Mat Min Combat Hostiles Destroyed 11 | . 11 . Guns 11 | . 11 . Classes Destroyed 7 | . 7 . Worker 3 | . 3 . Tunneler 1 | . 1 . Recycler 1 | . 1 . Operator 1 | . 1 . Watcher 2 | . 2 . Swarmer 5 | . 5 . Grunt 6 | . 6 . Best Kill Streak 3 | . 3 . Combat Bots Only 3 | . 3 . Max Kills in Single Turn 1 | . 1 . Gunslinging . | . . . Exploded . | . . . Melee . | . . . Uniques/NPCs Destroyed . | . . . Combat | -11 -10 -10 -------- Run | Scr Mat Min Damage Taken 1375 | . 1038 337 Core 250 | . 179 71 Absorbed by Shields . | . . . Core Remaining (%) 100 | 100 . . Volleys Fired 84 | . 82 2 Largest 2 | . 2 2 Hottest 130 | . 130 70 Shots Fired 144 | . 141 3 Gun 144 | . 141 3 Cannon . | . . . Launcher . | . . . Special . | . . . Kinetic 69 | . 67 2 Thermal 55 | . 54 1 Explosive . | . . . Electromagnetic 20 | . 20 . Robot Hit Streak 8 | . 8 5 Robot Miss Streak 9 | . 9 1 Penetration Max . | . . . Secondary Targets 1 | . 1 . Max Gunslinging Chain 1 | . 1 . Shots Hit Robots 78 | . 76 2 Core Hits 38 | . 37 1 Critical Hits 1 | . 1 . Critical Kills 1 | . 1 . Critical Parts Destroyed . | . . . Melee Attacks . | . . . Impact . | . . . Slashing . | . . . Piercing . | . . . Sneak Attacks . | . . . Combat Hostiles . | . . . Follow-up Attacks . | . . . Damage Inflicted 1046 | . 1023 23 Guns 1015 | . 992 23 Cannons . | . . . Explosions 31 | . 31 . Melee . | . . . Ramming . | . . . Kinetic 387 | . 377 10 Thermal 452 | . 439 13 Explosive . | . . . Electromagnetic 207 | . 207 . Impact . | . . . Slashing . | . . . Piercing . | . . . Highest Corruption . | . . . Average Corruption . | . . . Corruption Purged . | . . . Overload Shots . | . . . Overflow Damage 1 | . 1 . Projectiles . | . . . Explosions 1 | . 1 . Melee . | . . . Knockbacks . | . . . Impact . | . . . Kinetic . | . . . Secondary . | . . . Self-Inflicted Damage 34 | . 34 . Shots 1 | . 1 . Rammed . | . . . Targets Rammed 1 | . 1 . Kicked . | . . . Crushed 1 | . 1 . Highest Temperature 327 | . 327 9 Average Temperature 66 | . 67 6 Received Heat Transfer 234 | . 234 . Effects 3 | . 3 . Interference 2 | . 2 . Short Circuit 1 | . 1 . Siege Activations . | . . . Robots Corrupted . | . . . Combat Hostiles . | . . . Parts Fried 1 | . 1 . Impact Corruptions . | . . . Robots Melted . | . . . Combat Hostiles . | . . . Parts Melted . | . . . Heat Transferred 1061 | . 1024 37 Parts Sabotaged . | . . . Parts Stolen . | . . . Parts Stripped . | . . . Power Chain Reactions 1 | . 1 . Missiles Intercepted . | . . . Alert | -11 -10 -10 ------- Run | Scr Mat Min Peak Influence 240 | . 240 73 Initial 73 | . . 73 Average 67 | . 70 66 Maximum Alert Level 1 | . 1 . Low Security (%) 98 | 100 98 100 Level 1 1 | . 1 . Level 2 . | . . . Level 3 . | . . . Level 4 . | . . . Level 5 . | . . . High Security . | . . . Max Security . | . . . Squads Dispatched 2 | . 2 . Investigation 1 | . 1 . Extermination . | . . . Reinforcement 1 | . 1 . Assault . | . . . Garrison . | . . . Intercept . | . . . Construction Impeded . | . . . Haulers Reinforced . | . . . Stealth | -11 -10 -10 --------- Run | Scr Mat Min Distress Signals 4 | . 4 . Communications Jammed . | . . . Distress Signals . | . . . Times Spotted 57 | . 39 18 Peak Tracking Total 16 | . 5 16 Tactical Retreats 5 | . 4 1 Traps | -11 -10 -10 ------- Run | Scr Mat Min Traps Triggered 1 | . 1 . Indirectly . | . . . Trap Hack Attempts . | . . . Triggered . | . . . Disarmed . | . . . Reprogrammed . | . . . Reused . | . . . Traps Extracted . | . . . Installed . | . . . Triggered . | . . . Machines | -11 -10 -10 ---------- Run | Scr Mat Min Machines Disabled . | . . . Max in Single Turn . | . . . Machines Sabotaged . | . . . Garrisons Compromised . | . . . Overloaded Fab Kills . | . . . Fab Network Shutdowns . | . . . Hacking | -11 -10 -10 --------- Run | Scr Mat Min Machines Accessed 2 | . 2 . Terminals 1 | . 1 . Fabricators . | . . . Repair Stations . | . . . Recycling Units 1 | . 1 . Scanalyzers . | . . . Garrison Access . | . . . Total Hacks 4 | . 4 . Successful 3 | . 3 . Failed 1 | . 1 . Catastrophic . | . . . Database Lockouts . | . . . Manual . | . . . Terminals 1 | . 1 . Fabricators . | . . . Repair Stations . | . . . Recycling Units 3 | . 3 . Scanalyzers . | . . . Garrison Access . | . . . Terminal Hacks . | . . . Fabricator Hacks . | . . . Repair Station Hacks . | . . . Recycling Unit Hacks 3 | . 3 . Recycle Component 1 | . 1 . Process 1 | . 1 . Report Inventory 1 | . 1 . Scanalyzer . | . . . Garrison Access Hacks . | . . . Unauthorized Hacks . | . . . Terminals . | . . . Fabricators . | . . . Repair Stations . | . . . Recycling Units . | . . . Scanalyzers . | . . . Garrison Access . | . . . Data Cores Recovered . | . . . Used . | . . . Hacking Detections 1 | . 1 . Full Trace Events . | . . . Feedback Events . | . . . Feedback Blocked . | . . . Robot Schematics Acquired . | . . . Robots Built . | . . . Matter . | . . . Time . | . . . Total Robot Build Rating . | . . . Part Schematics Acquired . | . . . Parts Built . | . . . Matter . | . . . Time . | . . . Total Part Build Rating . | . . . Parts Repaired . | . . . Time . | . . . Parts Recycled 1 | . 1 . Recycled Matter 163 | . 163 . Retrieved Matter . | . . . Retrieved Components . | . . . Parts Scanalyzed . | . . . Part Schematics Acquired . | . . . Parts Damaged . | . . . Bothacking | -11 -10 -10 ------------ Run | Scr Mat Min Used RIF Installer . | . . . Robots Hacked . | . . . Non-combat . | . . . Combat . | . . . Robot Hacks Applied . | . . . Relay Couplers Released . | . . . Robots Rewired . | . . . Allies Hacked . | . . . Hacks Repelled . | . . . Allies | -11 -10 -10 -------- Run | Scr Mat Min Total Allies . | . . . Largest Group . | . . . Highest-Rated Group . | . . . Highest-Rated Ally . | . . . Total Orders . | . . . Ally Attacks . | . . . Total Damage . | . . . Kills . | . . . Allies Corrupted . | . . . Allies Melted . | . . . Intel | -11 -10 -10 ------- Run | Scr Mat Min Robot Analysis Total . | . . . Derelict Logs Recovered . | . . . Drone Launches . | . . . Drone Recoveries . | . . . Exploration | -11 -10 -10 ------------- Run | Scr Mat Min Turns Passed 1435 | 74 1325 36 Spaces Moved 783 | 60 703 20 Core 89 | 21 66 2 Treads 426 | 1 407 18 Legs 255 | 25 230 . Wheels 13 | 13 . . Hover . | . . . Flight . | . . . Fastest Speed 50 | 50 120 150 Average Speed 146 | 91 150 159 Slowest Speed 200 | 160 200 160 Overloaded Moves . | . . . Propulsion Burnouts . | . . . Robots Hopped . | . . . Cave-ins Triggered . | . . . Exploration Rate (%) 25 | 3 62 12 Regions Visited 2 Branch Regions 1 Pre-discovered Areas . | . . . Known Exits Taken . | . . . Unknown Exits Taken 2 | 1 1 . Scrap Searched . | . . . Spaces Dug . | . . . Terrain Destroyed . | . . . Melee . | . . . Projectile . | . . . AOE . | . . . Terrain Rammed . | . . . Walls Destroyed . | . . . Machines Disabled . | . . . Actions | -11 -10 -10 --------- Run | Scr Mat Min Total 934 | 77 835 22 Wait 13 | . 13 . Move 781 | 59 702 20 Hop . | . . . Pick Up 22 | 6 16 . Fast Attach 5 | 5 . . Attach 11 | 2 9 . Detach . | . . . Swap 10 | 3 7 . Drop 7 | 2 5 . Fire 84 | . 82 2 Melee . | . . . Ram . | . . . Kick . | . . . Crush 1 | . 1 . Escape Stasis . | . . . Rewire . | . . . Trap . | . . . Miscellaneous . | . . . Route ------- -11/Scrapyard -10/Materials (discovered 2 exits: [*Mat] / [*Min]) -10/Mines (discovered 1 exit: [*Mat]) History --------- Turn | Location | Event 3 | -11/Scrapyard | Discovered new exit (range 14) 75 | -11/Scrapyard | Entered Materials 315 | -10/Materials | Build established: Mutant 459 | -10/Materials | Core integrity fell below 50% 495 | -10/Materials | Lost 5 parts (1p2n2w) 539 | -10/Materials | Discovered new exit (range 9) 1126 | -10/Materials | Discovered new exit (range 12) 1400 | -10/Materials | Entered Mines 1403 | -10/Mines | Assembled infested the area 1420 | -10/Mines | Core integrity fell below 20% 1430 | -10/Mines | Discovered new exit (range 7) 1436 | -10/Mines | Destroyed by D-53 Grenadier with Mini Grenade Launcher Last Messages --------------- 01417_ K-01 Serf cleans the Seismic Survey Station. 01419_ Seismic Survey Station disabled. 01420_ K-01 Serf collects debris. 01424_ R-06 Scavenger collects Wheel. 01426_ Lgt. Treads destroyed. 01427_ K-01 Serf collects debris. 01427_ R-06 Scavenger collects Mni. Grenade Launcher. 01430_ Med. Laser destroyed. 01430_ EXIT=FOUND 01430_ U-05 Engineer lays Concrete. 01431_ K-01 Serf collects debris. 01431_ R-06 Scavenger collects Mining Laser. 01432_ The unstable cave ceiling collapses. 01432_ U-05 Engineer lays Concrete. 01432_ Lgt. Treads destroyed. 01432_ U-05 Engineer destroyed. 01434_ The unstable cave ceiling collapses. 01434_ K-01 Serf collects debris. 01434_ Assault Rifle destroyed. 01435_ R-06 Scavenger collects Terrain Scan Processor. Map ----- +----------------------------------------------------+ | ???????????????????????????????????? | | ???????????????????????????????????? | | ???????????????????????????????????? | | ???????????????????????????????????? | | ???????????????????????????????????? | | ???????????????????????????????????? | | ???????????????????????????????????? | | ???????????????????????????????????? | | ???????????????????????????????????? | | ???????????????????????????????????? | | ???????????????????????????????????? | | ???????????????????????????????????? | | ??????????????##???????????????????? | | ?????????????? ???????????????????? | | ?????????????$ ???????????????????? | | ????????????? #???????????????????? | | ????????????? #???????????????????? | | ????????????? #???????????????????? | | ????????????? ###?????????????????? | | ????????????# ##????????????????? | | ???????##### #????????????????? | | ??????## ###??????????????? | | ??????# < ???????????????? | | ??????# r #?????????????????? | | ??????## = #?????????????????? | | ?????## @ ! |#??????????????????? | | ?????# = #####??#???????????? | | ?????# # ## #???????????? | | ?????# % ####????????? | | ?????# rd ## ??????? | | ?????# % ?????? | | ????# % "?????? | | ????## t ?????? | | ?????## ?????? | | ??????## # ?????? | | ???????# # ###?# ? ?????????? | | ???????# " #### #????????????????? | | ???????# k #???? ????????????????? | | ???????# #????# ???????????????? | | ???????# #????? #??????????????? | | ???????# #?????????????????????? | | ???????# #?????????????????????? | | ???????#######?????????????????????? | | ???????????????????????????????????? | | ???????????????????????????????????? | | ???????????????????????????????????? | | ???????????????????????????????????? | | ???????????????????????????????????? | | ???????????????????????????????????? | | ???????????????????????????????????? | +----------------------------------------------------+ Best States ------------- Heat Dissipation 25 Energy Generation 10 Energy Capacity 125 Matter Stores 300 Matter Capacity 300 Sight Range 16 Terrain Scan Density 10 ECM Strength 1 Evasion (%) 50 Recoil Reduction 2 Item Schematics ----------------- None Robot Schematics ------------------ None Fabricated ------------ Nothing Alien Tech Used ----------------- None Achievements -------------- None Challenges ------------ None Game ------ Seed ContainmentGatlingTerrabomb Manual? 0 Play Time 00:23:17 Cumulative 4.4 hours Start 2020.11.02 @ 18:46:05 End 2020.11.02 @ 19:09:30 Sessions 1 Manual Loads 0 Difficulty Rogue Special Mode None Game No. 6 Rogue 6 Adventurer 0 Explorer 0 Win Type - Total 0 Types 0/0/0/0/0/0/0/0/0 Lore% 2 Gallery% 6 Achievement% 5 Wizard Run 0 Options --------- ASCII 0 Keyboard 0 Movement Mouse Keybinds 0 Fullscreen 2 Font 24/Smallcaps Map View 76x50 Tactical HUD 1 Map Filters NONE Filters NONE Steam 1 RUN: 92c8a57f-27f0-4473-90bd-440f189bd608